fUSD/lending_fUSD_20250225
["ID","MTS","AMOUNT","RATE_DAILY","PERIOD"]
[354482731,1740526237931,-500.0,0.00046575,120]
[354482732,1740526237941,-3214.71,0.00046575,120]
[354482733,1740526237951,-500.0,0.00046575,120]
[354482735,1740526237961,-500.0,0.00046575,120]
[354482736,1740526237971,-500.0,0.00046575,120]
[354482738,1740526237981,-500.0,0.00046575,120]
[354482740,1740526237990,-500.0,0.00046575,120]
[354482742,1740526238000,-500.0,0.00046575,120]
[354482744,1740526238009,-500.0,0.00046575,120]
[354482746,1740526238019,-1823.25,0.00046575,120]
[354482748,1740526238028,-500.0,0.00046575,120]
[354482750,1740526238037,-500.0,0.00046575,120]
[354482752,1740526238047,-500.0,0.00046575,120]
[354482754,1740526238056,-728.62,0.00046575,120]
[354482756,1740526238066,-500.0,0.00046575,120]
[354482758,1740526238075,-500.0,0.00046575,120]
[354482760,1740526238084,-576.29,0.00046575,120]
[354482762,1740526238094,-500.0,0.00046575,120]
[354482764,1740526238103,-500.0,0.00046575,120]
[354482766,1740526238112,-500.0,0.00046575,120]
[354482768,1740526238122,-1014.87,0.00046575,120]
[354482769,1740526238131,-676.78,0.00046575,120]
[354482771,1740526238141,-500.0,0.00046575,120]
[354482774,1740526238152,-500.0,0.00046575,120]
[354482776,1740526238162,-1436.0,0.00046575,120]
[354482777,1740526238172,-622.91,0.00046575,120]
[354482779,1740526238181,-500.0,0.00046575,120]
[354482781,1740526238190,-500.0,0.00046575,120]
[354482783,1740526238200,-500.0,0.00046575,120]
[354482785,1740526238210,-500.0,0.00046575,120]
[354482787,1740526238219,-562.06,0.00046575,120]
[354482789,1740526238228,-527.08,0.00046575,120]
[354482790,1740526238238,-500.0,0.00046575,120]
[354482791,1740526238247,-659.79,0.00046575,120]
[354482792,1740526238256,-1768.39,0.00046575,120]
[354482793,1740526238271,-500.59075686,0.00046575,120]
[354482794,1740526238281,-500.0,0.00046575,120]
[354482795,1740526238290,-500.0,0.00046575,120]
[354482796,1740526238299,-503.00500572,0.00046575,120]
[354482797,1740526238308,-1603.69,0.00046575,120]
[354482798,1740526238318,-500.0,0.00046575,120]
[354482799,1740526238327,-755.08,0.00046575,120]
[354482800,1740526238336,-500.0,0.00046575,120]
[354482801,1740526238346,-500.0,0.00046575,120]
[354482802,1740526238356,-2991.05,0.00046575,120]
[354482803,1740526238366,-500.0,0.00046575,120]
[354482804,1740526238375,-500.0,0.00046575,120]
[354482805,1740526238384,-1540.31,0.00046575,120]
[354482806,1740526238394,-635.48,0.00046575,120]
[354482807,1740526238403,-500.0,0.00046575,120]
[354482808,1740526238412,-551.25,0.00046575,120]
[354482809,1740526238422,-500.93784646,0.00046575,120]
[354482810,1740526238431,-500.0,0.00046575,120]
[354482811,1740526238440,-500.0,0.00046575,120]
[354482812,1740526238450,-500.0,0.00046575,120]
[354482813,1740526238467,-1619.69,0.00046575,120]
[354482814,1740526238478,-500.0,0.00046575,120]
[354482815,1740526238488,-1400.32,0.00046575,120]
[354482816,1740526238497,-1327.13,0.00046575,120]
[354482817,1740526238506,-500.0,0.00046575,120]
[354482818,1740526238515,-674.12,0.00046575,120]
[354482819,1740526238525,-500.0,0.00046575,120]
[354482820,1740526238534,-500.0,0.00046575,120]
[354482821,1740526238544,-1209.78,0.00046575,120]
[354482822,1740526238553,-500.0,0.00046575,120]
[354482823,1740526238563,-500.0,0.00046575,120]
[354482824,1740526238573,-500.0,0.00046575,120]
[354482825,1740526238583,-175.050844,0.00046575,120]
[354482826,1740526238592,-500.0,0.00046575,120]
[354482827,1740526238602,-281.09137846,0.00046575,120]
[354482828,1740526238611,-503.04843873,0.00046575,120]
[354482829,1740526238621,-795.39,0.00046575,120]
[354482830,1740526238630,-507.33786608,0.00046575,120]
[354482831,1740526238639,-500.0,0.00046575,120]
[354482832,1740526238649,-1337.53,0.00046575,120]
[354482833,1740526238660,-2462.85,0.00046575,120]
[354482834,1740526238669,-512.31,0.00046575,120]
[354482835,1740526238679,-500.0,0.00046575,120]
[354482836,1740526238688,-1145.3,0.00046575,120]
[354482837,1740526238697,-1791.61,0.00046575,120]
[354482838,1740526238706,-500.0,0.00046575,120]
[354482839,1740526238715,-942.55,0.00046575,120]
[354482840,1740526238725,-1034.27,0.00046575,120]
[354482841,1740526238734,-665.67,0.00046575,120]
[354482842,1740526238744,-1202.26,0.00046575,120]
[354482843,1740526238754,-497.42170741,0.00046575,120]
[354482844,1740526238763,-1475.89,0.00046575,120]
[354482845,1740526238772,-934.68,0.00046575,120]
[354482846,1740526238782,-500.0,0.00046575,120]
[354482847,1740526238791,-156.025359,0.00046575,120]
[354482848,1740526238800,-500.0,0.00046575,120]
[354482849,1740526238810,-1285.77,0.00046575,120]
[354482850,1740526238823,-500.0,0.00046575,120]
[354482851,1740526238832,-500.0,0.00046575,120]
[354482852,1740526238842,-3053.9,0.00046575,120]
[354482853,1740526238851,-500.0,0.00046575,120]
[354482854,1740526238863,-500.0,0.00046575,120]
[354482855,1740526238872,-680.21,0.00046575,120]
[354482856,1740526238882,-500.0,0.00046575,120]
[354482857,1740526238891,-500.0,0.00046575,120]
[354482858,1740526238902,-500.0,0.00046575,120]
[354482859,1740526238912,-500.0,0.00046575,120]
[354482860,1740526238922,-976.89,0.00046575,120]
[354482861,1740526238931,-500.0,0.00046575,120]
[354482862,1740526238942,-500.0,0.00046575,120]
[354482863,1740526238952,-867.88,0.00046575,120]
[354482864,1740526238962,-2182.33,0.00046575,120]
[354482865,1740526238971,-822.58,0.00046575,120]
[354482866,1740526238982,-500.0,0.00046575,120]
[354482867,1740526238992,-509.66350241,0.00046575,120]
[354482868,1740526239002,-1670.33,0.00046575,120]
[354482869,1740526239011,-500.0,0.00046575,120]
[354482870,1740526239021,-1496.7,0.00046575,120]
[354482871,1740526239030,-156.72295,0.00046575,120]
[354482872,1740526239039,-745.55,0.00046575,120]
[354482873,1740526239049,-2057.33,0.00046575,120]
[354482874,1740526239059,-500.0,0.00046575,120]
[354482875,1740526239069,-2133.07,0.00046575,120]
[354482876,1740526239079,-500.0,0.00046575,120]
[354482877,1740526239088,-500.0,0.00046575,120]
[354482878,1740526239098,-717.67,0.00046575,120]
[354482879,1740526239107,-622.61,0.00046575,120]
[354482880,1740526239116,-2035.73,0.00046575,120]
[354482881,1740526239126,-773.78,0.00046575,120]
[354482882,1740526239135,-505.26751141,0.00046575,120]
[354482883,1740526239145,-693.85,0.00046575,120]
[354482884,1740526239156,-500.0,0.00046575,120]
[354482885,1740526239166,-500.0,0.00046575,120]
[354482886,1740526239175,-500.0,0.00046575,120]
[354482887,1740526239185,-500.0,0.00046575,120]
[354482888,1740526239196,-159.866456,0.00046575,120]
[354482889,1740526239205,-500.0,0.00046575,120]
[354482890,1740526239215,-2395.33,0.00046575,120]
[354482891,1740526239225,-536.76,0.00046575,120]
[354482892,1740526239536,-500.0,0.00046575,120]
[354482893,1740526239559,-500.0,0.00046575,120]
[354482894,1740526239570,-500.0,0.00046575,120]
[354482895,1740526239579,-1296.9,0.00046575,120]
[354482896,1740526239589,-500.0,0.00046575,120]
[354482897,1740526239599,-1201.49,0.00046575,120]
[354482898,1740526239608,-510.88,0.00046575,120]
[354482900,1740526239618,-830.66,0.00046575,120]
[354482902,1740526239627,-500.0,0.00046575,120]
[354482903,1740526239637,-500.0,0.00046575,120]
[354482904,1740526239647,-500.0,0.00046575,120]
[354482905,1740526239658,-248.59348486,0.00046575,120]
[354482906,1740526239668,-1389.34,0.00046575,120]
[354482907,1740526239678,-1656.68,0.00046575,120]
[354482908,1740526239687,-500.0,0.00046575,120]
[354482909,1740526239697,-1352.51,0.00046575,120]
[354482910,1740526239707,-500.0,0.00046575,120]
[354482911,1740526239716,-1155.07,0.00046575,120]
[354482912,1740526239726,-1270.14,0.00046575,120]
[354482913,1740526239735,-528.13962164,0.00046575,120]
[354482914,1740526239745,-152.402378,0.00046575,120]
[354482915,1740526239754,-500.0,0.00046575,120]
[354482916,1740526239764,-2296.32,0.00046575,120]
[354482917,1740526239774,-500.0,0.00046575,120]
[354482918,1740526239784,-500.0,0.00046575,120]
[354482919,1740526239795,-500.0,0.00046575,120]
[354482920,1740526239804,-500.0,0.00046575,120]
[354482921,1740526239814,-500.0,0.00046575,120]
[354482922,1740526239826,-682.78,0.00046575,120]
[354482923,1740526239837,-500.0,0.00046575,120]
[354482924,1740526239846,-1279.06,0.00046575,120]
[354482925,1740526239857,-1191.07,0.00046575,120]
[354482926,1740526239867,-618.47,0.00046575,30]
[354482927,1740526239877,-500.0,0.00046575,120]
[354482928,1740526239886,-1810.01,0.00046575,120]
[354482929,1740526239896,-1495.8,0.00046575,120]
[354482930,1740526239907,-500.0,0.00046575,120]
[354482931,1740526239917,-568.09835497,0.00046575,120]
[354482932,1740526239927,-500.0,0.00046575,120]
[354482933,1740526239936,-500.0,0.00046575,120]
[354482934,1740526239948,-500.0,0.00046575,120]
[354482935,1740526239958,-1072.87,0.00046575,120]
[354482936,1740526239967,-500.0,0.00046575,120]
[354482937,1740526239977,-500.0,0.00046575,120]
[354482938,1740526239987,-1185.28,0.00046575,120]
[354482939,1740526239997,-500.0,0.00046575,120]
[354482940,1740526240007,-2143.97,0.00046575,120]
[354482941,1740526240016,-2807.33,0.00046575,120]
[354482942,1740526240026,-2291.10040027,0.00046575,120]
[354482943,1740526240093,-144.13959973,0.00046575,120]
[354482944,1740526240103,-639.02645958,0.00046575,120]
[354482945,1740526240115,-742.47354042,0.00046575,120]
[354482947,1740526240125,-509.59,0.00046575,120]
[354482949,1740526240134,-1528.27,0.00046575,120]
[354482951,1740526240144,-315.82045958,0.00046575,120]
[354482954,1740526240160,-184.17954042,0.00046575,120]
[354482957,1740526240170,-500.0,0.00046575,120]
[354482960,1740526240180,-796.42478013,0.00046575,120]
[354482963,1740526240192,-334.78694722,0.00046575,120]
[354482977,1740526240319,-167.63189637,0.00046565,7]
[354482979,1740526240330,-250.51674643,0.00046575,120]
[354482981,1740526240341,-1393.06152622,0.00046575,120]
[354482982,1740526240350,-500.0,0.00046575,120]
[354482984,1740526240360,-501.33860508,0.00046575,120]
[354482985,1740526240369,-1341.01,0.00046575,120]
[354482986,1740526240379,-500.0,0.00046575,120]
[354482987,1740526240388,-500.0,0.00046575,120]
[354482988,1740526240398,-327.99525277,0.00046575,120]
[354482989,1740526240408,-1187.71,0.00046575,120]
[354482990,1740526240418,-1103.39,0.00046575,120]
[354482991,1740526240427,-500.0,0.00046575,120]
[354482992,1740526240436,-1499.12,0.00046575,120]
[354482993,1740526240446,-500.0,0.00046575,120]
[354482994,1740526240455,-1228.33,0.00046575,120]
[354482995,1740526240465,-500.0,0.00046575,120]
[354482996,1740526240474,-1205.71,0.00046575,120]
[354482997,1740526240483,-1336.41,0.00046575,120]
[354482998,1740526240495,-500.0,0.00046575,120]
[354482999,1740526240504,-500.0,0.00046575,120]
[354483000,1740526240513,-500.0,0.00046575,120]
[354483001,1740526240523,-3477.99,0.00046575,120]
[354483002,1740526240532,-4641.75,0.00046575,120]
[354483003,1740526240543,-4560.62,0.00046575,120]
[354483004,1740526240552,-765.27,0.00046575,120]
[354483005,1740526240561,-1778.32,0.00046575,120]
[354483006,1740526240571,-272.98826988,0.00046575,120]
[354483007,1740526240580,-2379.54,0.00046575,120]
[354483008,1740526240590,-500.0,0.00046575,120]
[354483009,1740526240599,-500.0,0.00046575,120]
[354483010,1740526240609,-500.0,0.00046575,120]
[354483011,1740526240618,-500.0,0.00046575,120]
[354483012,1740526240627,-1577.55,0.00046575,120]
[354483013,1740526240637,-555.97,0.00046575,120]
[354483014,1740526240646,-500.0,0.00046575,120]
[354483015,1740526240657,-666.97,0.00046575,120]
[354483016,1740526240666,-518.17737717,0.00046575,120]
[354483017,1740526240675,-500.0,0.00046575,120]
[354483018,1740526240685,-556.34,0.00046575,120]
[354483019,1740526240694,-3211.91,0.00046575,120]
[354483020,1740526240704,-500.0,0.00046575,120]
[354483021,1740526240713,-2518.82,0.00046575,120]
[354483022,1740526240722,-500.0,0.00046575,120]
[354483023,1740526240731,-1897.8,0.00046575,120]
[354483024,1740526240741,-5788.36,0.00046575,120]
[354483025,1740526240750,-500.0,0.00046575,120]
[354483026,1740526240759,-583.77,0.00046575,120]
[354483027,1740526240769,-522.18,0.00046575,120]
[354483028,1740526240778,-500.0,0.00046575,120]
[354483029,1740526240787,-1364.04,0.00046575,120]
[354483030,1740526240797,-504.69128952,0.00046575,120]
[354483031,1740526240806,-500.0,0.00046575,120]
[354483032,1740526240815,-500.0,0.00046575,120]
[354483033,1740526240828,-500.0,0.00046575,120]
[354483034,1740526240838,-500.0,0.00046575,120]
[354483035,1740526240848,-1511.17,0.00046575,120]
[354483036,1740526240859,-506.46628403,0.00046575,120]
[354483037,1740526240868,-4684.4,0.00046575,120]
[354483038,1740526240878,-2359.96,0.00046575,120]
[354483039,1740526240887,-4268.04,0.00046575,120]
[354483040,1740526240897,-1000.0,0.00046575,120]
[354483041,1740526240907,-439.08855221,0.00046575,120]
[354483042,1740526240917,-500.0,0.00046575,120]
[354483043,1740526240926,-4219.43,0.00046575,120]
[354483044,1740526240936,-1002.55,0.00046575,120]
[354483045,1740526240946,-500.0,0.00046575,120]
[354483046,1740526240956,-500.0,0.00046575,120]
[354483047,1740526240966,-500.0,0.00046575,120]
[354483048,1740526240975,-500.0,0.00046575,120]
[354483049,1740526240984,-500.0,0.00046575,120]
[354483050,1740526240994,-500.0,0.00046575,120]
[354483051,1740526241003,-500.0,0.00046575,120]
[354483052,1740526241013,-500.0,0.00046575,120]
[354483053,1740526241023,-500.0,0.00046575,120]
[354483054,1740526241032,-4976.09,0.00046575,120]
[354483055,1740526241042,-1789.32,0.00046575,120]
[354483056,1740526241051,-2546.04,0.00046575,120]
[354483057,1740526241062,-500.0,0.00046575,120]
[354483058,1740526241072,-3616.13,0.00046575,120]
[354483059,1740526241082,-1297.7,0.00046575,7]
[354483060,1740526241092,-6537.08,0.00046575,120]
[354483061,1740526241101,-500.0,0.00046575,120]
[354483062,1740526241111,-500.0,0.00046575,120]
[354483063,1740526241120,-500.0,0.00046575,120]
[354483064,1740526241130,-500.0,0.00046575,120]
[354483065,1740526241139,-2119.93,0.00046575,120]
[354483066,1740526241148,-500.0,0.00046575,120]
[354483067,1740526241159,-1632.09,0.00046575,120]
[354483068,1740526241168,-1240.89,0.00046575,120]
[354483069,1740526241177,-500.0,0.00046575,120]
[354483070,1740526241187,-500.0,0.00046575,120]
[354483071,1740526241196,-670.86,0.00046575,120]
[354483072,1740526241206,-893.7,0.00046575,120]
[354483073,1740526241217,-2585.44,0.00046575,120]
[354483074,1740526241226,-3102.07,0.00046575,120]
[354483075,1740526241235,-1282.46,0.00046575,120]
[354483076,1740526241244,-1339.49,0.00046575,120]
[354483077,1740526241254,-1493.62,0.00046575,120]
[354483078,1740526241263,-500.0,0.00046575,120]
[354483079,1740526241273,-3500.0,0.00046575,120]
[354483080,1740526241283,-500.0,0.00046575,120]
[354483081,1740526241292,-1932.55,0.00046575,120]
[354483082,1740526241302,-500.0,0.00046575,120]
[354483083,1740526241311,-2294.94,0.00046575,120]
[354483084,1740526241321,-500.0,0.00046575,120]
[354483085,1740526241330,-254.71988086,0.00046575,120]
[354483086,1740526241340,-5171.07,0.00046575,120]
[354483087,1740526241349,-771.84,0.00046575,120]
[354483088,1740526241359,-500.0,0.00046575,120]
[354483089,1740526241368,-760.53,0.00046575,120]
[354483090,1740526241378,-500.0,0.00046575,120]
[354483091,1740526241387,-500.0,0.00046575,120]
[354483092,1740526241396,-1488.67,0.00046575,120]
[354483093,1740526241407,-501.61268735,0.00046575,120]
[354483094,1740526241416,-729.74,0.00046575,120]
[354483095,1740526241426,-1078.1,0.00046575,120]
[354483096,1740526241435,-500.0,0.00046575,120]
[354483097,1740526241444,-501.57041341,0.00046575,120]
[354483098,1740526241454,-500.0,0.00046575,120]
[354483099,1740526241463,-500.0,0.00046575,120]
[354483100,1740526241472,-500.78,0.00046575,120]
[354483101,1740526241481,-163.259523,0.00046575,120]
[354483102,1740526241491,-500.0,0.00046575,120]
[354483103,1740526241500,-500.0,0.00046575,120]
[354483104,1740526241509,-1200.79,0.00046575,120]
[354483105,1740526241519,-2821.59,0.00046575,120]
[354483106,1740526241527,-564.23485359,0.00046575,120]
[354483107,1740526241537,-2141.89,0.00046575,120]
[354483108,1740526241546,-500.0,0.00046575,120]
[354483109,1740526241557,-500.0,0.00046575,120]
[354483110,1740526241566,-3380.47,0.00046575,120]
[354483111,1740526241576,-1575.72,0.00046575,120]
[354483112,1740526241586,-500.0,0.00046575,120]
[354483113,1740526241596,-2413.79,0.00046575,120]
[354483114,1740526241606,-500.0,0.00046575,120]
[354483115,1740526241615,-341.24421545,0.00046575,120]
[354483116,1740526241624,-500.0,0.00046575,120]
[354483117,1740526241633,-500.0,0.00046575,120]
[354483118,1740526241643,-994.97,0.00046575,120]
[354483119,1740526241652,-2706.19,0.00046575,120]
[354483120,1740526241662,-1989.77,0.00046575,120]
[354483121,1740526241672,-971.91,0.00046575,120]
[354483122,1740526241682,-2432.49,0.00046575,120]
[354483123,1740526241692,-500.0,0.00046575,120]
[354483124,1740526241701,-610.37,0.00046575,120]
[354483125,1740526241711,-1063.9,0.00046575,120]
[354483126,1740526241720,-599.1,0.00046575,2]
[354483127,1740526241730,-2065.12,0.00046575,120]
[354483128,1740526241739,-2452.02,0.00046575,120]
[354483129,1740526241749,-555.89860141,0.00046575,120]
[354483130,1740526241758,-500.0,0.00046575,120]
[354483131,1740526241768,-721.88,0.00046575,120]
[354483132,1740526241777,-500.0,0.00046575,120]
[354483133,1740526241787,-500.0,0.00046575,120]
[354483134,1740526241797,-500.0,0.00046575,120]
[354483135,1740526241807,-500.0,0.00046575,120]
[354483136,1740526241817,-858.48,0.00046575,120]
[354483137,1740526241831,-2444.9,0.00046575,120]
[354483138,1740526241840,-1668.06,0.00046575,120]
[354483139,1740526241850,-500.0,0.00046575,120]
[354483140,1740526241860,-500.0,0.00046575,120]
[354483141,1740526241870,-530.19,0.00046575,120]
[354483142,1740526241879,-5207.06,0.00046575,120]
[354483143,1740526241889,-736.18,0.00046575,120]
[354483144,1740526241899,-193.64033179,0.00046575,120]
[354483145,1740526241982,-500.0,0.00046575,120]
[354483146,1740526241993,-2224.34,0.00046575,120]
[354483147,1740526242002,-523.36,0.00046575,120]
[354483148,1740526242012,-1567.48,0.00046575,120]
[354483149,1740526242022,-4778.98,0.00046575,120]
[354483150,1740526242031,-1663.35,0.00046575,120]
[354483151,1740526242041,-500.0,0.00046575,120]
[354483152,1740526242051,-1680.2,0.00046575,120]
[354483153,1740526242061,-603.04168732,0.00046575,120]
[354483154,1740526242070,-500.0,0.00046575,120]
[354483155,1740526242079,-500.0,0.00046575,120]
[354483156,1740526242089,-2883.04,0.00046575,120]
[354483157,1740526242098,-1418.09,0.00046575,120]
[354483158,1740526242107,-500.0,0.00046575,120]
[354483159,1740526242117,-500.0,0.00046575,120]
[354483160,1740526242126,-500.0,0.00046575,120]
[354483161,1740526242135,-500.0,0.00046575,120]
[354483162,1740526242144,-2540.05,0.00046575,120]
[354483163,1740526242155,-1435.64,0.00046575,120]
[354483164,1740526242164,-1948.66,0.00046575,120]
[354483165,1740526242174,-500.0,0.00046575,120]
[354483166,1740526242184,-500.0,0.00046575,120]
[354483167,1740526242193,-1593.96,0.00046575,120]
[354483168,1740526242202,-500.0,0.00046575,120]
[354483169,1740526242211,-765.47,0.00046575,120]
[354483170,1740526242222,-3111.1,0.00046575,120]
[354483171,1740526242231,-2269.18,0.00046575,120]
[354483172,1740526242241,-647.48,0.00046575,120]
[354483173,1740526242250,-500.0,0.00046575,120]
[354483174,1740526242259,-541.94759766,0.00046575,120]
[354483175,1740526242268,-2460.27,0.00046575,120]
[354483176,1740526242277,-3985.45,0.00046575,120]
[354483177,1740526242286,-503.95,0.00046575,120]
[354483178,1740526242296,-1587.08,0.00046575,120]
[354483179,1740526242305,-500.0,0.00046575,120]
[354483180,1740526242315,-767.93,0.00046575,120]
[354483181,1740526242324,-1873.39,0.00046575,120]
[354483182,1740526242334,-500.0,0.00046575,120]
[354483183,1740526242343,-500.0,0.00046575,120]
[354483184,1740526242353,-5286.67,0.00046575,120]
[354483185,1740526242362,-578.51,0.00046575,120]
[354483186,1740526242372,-2186.68,0.00046575,120]
[354483187,1740526242382,-500.0,0.00046575,120]
[354483188,1740526242391,-500.0,0.00046575,120]
[354483189,1740526242401,-500.0,0.00046575,120]
[354483190,1740526242411,-2536.17,0.00046575,120]
[354483191,1740526242421,-1886.54,0.00046575,120]
[354483193,1740526242431,-11155.98,0.00046575,120]
[354483194,1740526242440,-500.0,0.00046575,120]
[354483195,1740526242449,-500.0,0.00046575,120]
[354483196,1740526242459,-500.0,0.00046575,120]
[354483197,1740526242468,-4305.91,0.00046575,120]
[354483198,1740526242477,-1699.32,0.00046575,120]
[354483199,1740526242487,-1204.03,0.00046575,120]
[354483200,1740526242496,-500.0,0.00046575,120]
[354483201,1740526242506,-1204.03,0.00046575,120]
[354483202,1740526242516,-1204.03,0.00046575,120]
[354483203,1740526242526,-1204.03,0.00046575,120]
[354483205,1740526242535,-1204.03,0.00046575,120]
[354483206,1740526242544,-3365.25,0.00046575,120]
[354483208,1740526242554,-1870.47,0.00046575,120]
[354483211,1740526242563,-500.0,0.00046575,120]
[354483213,1740526242574,-1280.88,0.00046575,120]
[354483215,1740526242583,-500.0,0.00046575,120]
[354483217,1740526242593,-500.0,0.00046575,120]
[354483220,1740526242602,-1153.39,0.00046575,120]
[354483223,1740526242611,-1884.11,0.00046575,120]
[354483225,1740526242621,-578.47,0.00046575,120]
[354483227,1740526242630,-1480.07,0.00046575,120]
[354483229,1740526242639,-500.0,0.00046575,120]
[354483231,1740526242649,-500.0,0.00046575,120]
[354483233,1740526242658,-6228.15,0.00046575,120]
[354483234,1740526242668,-2275.39,0.00046575,120]
[354483235,1740526242677,-500.0,0.00046575,120]
[354483236,1740526242686,-5290.77,0.00046575,120]
[354483237,1740526242696,-1052.27,0.00046575,120]
[354483238,1740526242705,-500.0,0.00046575,120]
[354483239,1740526242715,-1531.94,0.00046575,120]
[354483240,1740526242724,-500.0,0.00046575,120]
[354483241,1740526242734,-5355.43,0.00046575,120]
[354483242,1740526242743,-500.0,0.00046575,120]
[354483244,1740526242752,-569.74,0.00046575,120]
[354483245,1740526242762,-2960.38,0.00046575,120]
[354483247,1740526242771,-549.88,0.00046575,120]
[354483248,1740526242780,-956.14,0.00046575,120]
[354483249,1740526242789,-509.24405293,0.00046575,120]
[354483250,1740526242799,-4010.88,0.00046575,120]
[354483251,1740526242808,-2007.13,0.00046575,120]
[354483252,1740526242819,-500.0,0.00046575,7]
[354483253,1740526242831,-500.0,0.00046575,120]
[354483254,1740526242840,-500.0,0.00046575,120]
[354483255,1740526242849,-562.54,0.00046575,120]
[354483256,1740526242858,-500.0,0.00046575,120]
[354483257,1740526242869,-2952.72,0.00046575,120]
[354483258,1740526242878,-500.0,0.00046575,120]
[354483259,1740526242887,-500.0,0.00046575,120]
[354483260,1740526242898,-500.0,0.00046575,120]
[354483261,1740526242908,-500.0,0.00046575,120]
[354483262,1740526242917,-500.0,0.00046575,120]
[354483263,1740526242926,-2305.88,0.00046575,120]
[354483264,1740526242935,-500.0,0.00046575,120]
[354483265,1740526242945,-2268.04,0.00046575,120]
[354483266,1740526242954,-3038.19,0.00046575,120]
[354483267,1740526242963,-500.0,0.00046575,120]
[354483268,1740526242972,-2793.24,0.00046575,120]
[354483269,1740526242981,-1145.59,0.00046575,7]
[354483270,1740526242990,-500.0,0.00046575,120]
[354483271,1740526243000,-500.0,0.00046575,120]
[354483272,1740526243009,-1601.32,0.00046575,120]
[354483273,1740526243018,-500.0,0.00046575,120]
[354483274,1740526243027,-1452.01,0.00046575,120]
[354483275,1740526243036,-1957.58,0.00046575,120]
[354483276,1740526243045,-1466.85,0.00046575,120]
[354483277,1740526243055,-497.49748517,0.00046575,120]
[354483278,1740526243064,-500.0,0.00046575,120]
[354483279,1740526243074,-1398.66,0.00046575,120]
[354483280,1740526243083,-4289.69,0.00046575,120]
[354483281,1740526243092,-3378.58,0.00046575,120]
[354483282,1740526243101,-500.0,0.00046575,120]
[354483283,1740526243111,-4094.95,0.00046575,120]
[354483285,1740526243120,-682.07,0.00046575,120]
[354483286,1740526243129,-739.04,0.00046575,120]
[354483287,1740526243139,-546.21313816,0.00046575,120]
[354483288,1740526243148,-778.89,0.00046575,120]
[354483289,1740526243158,-1072.87,0.00046575,120]
[354483290,1740526243167,-500.0,0.00046575,120]
[354483291,1740526243176,-1784.7,0.00046575,120]
[354483292,1740526243186,-501.94083038,0.00046575,120]
[354483293,1740526243195,-4174.82,0.00046575,120]
[354483294,1740526243205,-500.0,0.00046575,120]
[354483295,1740526243214,-3239.23,0.00046575,120]
[354483296,1740526243223,-5073.74,0.00046575,120]
[354483297,1740526243232,-502.46614023,0.00046575,120]
[354483298,1740526243242,-856.14,0.00046575,120]
[354483299,1740526243251,-500.0,0.00046575,120]
[354483300,1740526243260,-1930.19,0.00046575,120]
[354483301,1740526243269,-500.0,0.00046575,120]
[354483302,1740526243278,-737.67,0.00046575,120]
[354483303,1740526243287,-1514.19,0.00046575,120]
[354483304,1740526243296,-4982.62,0.00046575,120]
[354483305,1740526243305,-500.0,0.00046575,120]
[354483306,1740526243315,-1967.27,0.00046575,120]